bitfinex-derivatives/quotes_ETHF0:USTF0_20250520
["timestamp","ask_amount","ask_price","bid_price","bid_amount"]
[1747702758536,2.1926,2514.3,2514.0,0.79525]
[1747702758737,2.1926,2514.3,2514.0,2.13655]
[1747702759238,1.3974,2514.3,2514.2,0.7952]
[1747702759736,3.2078,2514.5,2514.0,1.3413]
[1747702759941,1.3119,2514.8,2514.7,0.79505]
[1747702761139,1.3119,2514.8,2514.4,1.3427]
[1747702761344,1.3119,2514.8,2514.3,3.2078]
[1747702761545,1.3119,2514.8,2514.4,2.684]
[1747702761847,0.79498,2515.0,2514.7,0.79503]
[1747702762040,2.08488,2515.0,2514.8,2.09481]
[1747702762243,0.79498,2514.9,2514.8,1.2998]
[1747702762748,0.79506,2514.7,2514.5,0.79508]
[1747702762949,2.08493,2514.8,2514.6,0.79508]
[1747702763141,1.2899,2514.8,2514.5,1.2998]
[1747702763342,1.38106398,2515.1,2514.9,0.79496]
[1747702763650,1.38106398,2515.1,2514.5,1.2998]
[1747702763651,0.00596398,2515.1,2515.0,0.79495]
[1747702763949,0.00596398,2515.1,2514.9,0.79496]
[1747702764144,1.29586398,2515.1,2514.9,0.79496]
[1747702764345,2.09078398,2515.1,2515.0,1.2998]
[1747702764747,0.79496,2515.0,2514.8,10.15]
[1747702764941,1.3178,2514.9,2514.8,10.7366]
[1747702765142,1.3178,2514.9,2514.8,11.53161]
[1747702766153,0.00596398,2515.1,2514.8,10.7366]
[1747702766345,0.00596398,2515.1,2515.0,0.79495]
[1747702768259,0.00596398,2515.1,2515.0,5.79495]
[1747702768554,0.00596398,2515.1,2515.0,0.79495]
[1747702768766,0.00596398,2515.1,2515.0,3.37515]
[1747702769055,0.00596398,2515.1,2515.0,8.37515]
[1747702769554,0.00596398,2515.1,2515.0,3.37515]
[1747702770744,4.4892,2515.5,2515.0,3.37515]
[1747702770745,3.10451601,2516.2,2515.3,1.98707]
[1747702770953,1.3174,2516.0,2515.6,3.2078]
[1747702771155,1.3174,2516.0,2515.9,0.79467]
[1747702771855,1.3174,2516.0,2515.8,0.79468]
[1747702772046,1.3174,2516.0,2515.8,2.19898]
[1747702772243,1.3174,2516.0,2515.9,0.79467]
[1747702772450,1.3174,2516.0,2515.9,1.4043]
[1747702773159,2.11204,2516.0,2515.9,1.4043]
[1747702773850,2.11204,2516.0,2515.7,0.00596398]
[1747702773851,0.7947,2515.8,2515.7,0.00596398]
[1747702774052,0.79469,2515.9,2515.7,0.00596398]
[1747702774253,2.0633,2515.8,2515.7,0.00596398]
[1747702774454,1.30416398,2516.2,2515.7,0.80067398]
[1747702774660,0.79466,2516.0,2515.7,0.80067398]
[1747702774957,1.2686,2515.9,2515.7,0.80067398]
[1747702775157,1.2686,2515.9,2515.8,0.7947]
[1747702775861,0.7947,2515.8,2515.7,0.00596398]
[1747702776860,2.06329,2515.9,2515.7,0.80069398]
[1747702777055,2.06329,2515.9,2515.8,0.7947]
[1747702778065,1.2686,2515.9,2515.8,0.7947]
[1747702780262,2.06328,2515.9,2515.7,0.80067398]
[1747702780564,1.2686,2515.9,2515.8,0.7947]
[1747702781270,0.7947,2515.8,2515.7,0.80068398]
[1747702781457,0.7947,2515.8,2515.7,0.00596398]
[1747702781860,0.7947,2515.8,2515.7,0.80069398]
[1747702782066,2.06329,2515.9,2515.7,0.80069398]
[1747702782258,0.7947,2515.8,2515.7,0.80069398]
[1747702782458,2.1264,2515.8,2515.7,0.00596398]
[1747702783667,7.1264,2515.8,2515.7,0.00596398]
[1747702785166,2.1264,2515.8,2515.7,0.00596398]
[1747702785369,7.1264,2515.8,2515.7,0.00596398]
[1747702787669,47.9264,2515.8,2515.7,0.00596398]
[1747702788568,42.9264,2515.8,2515.7,0.00596398]
[1747702789167,1.3317,2515.8,2515.7,0.80069398]
[1747702790674,0.79461,2516.1,2516.0,0.79464]
[1747702790864,2.09871,2516.1,2516.0,0.79464]
[1747702791063,1.3041,2516.1,2516.0,0.79464]
[1747702791474,1.54709342,2516.2,2516.1,0.7946]
[1747702791664,1.54709342,2516.2,2516.1,2.1371]
[1747702791864,1.54709342,2516.2,2516.1,3.4163]
[1747702794467,1.54709342,2516.2,2516.1,4.7378]
[1747702795175,0.00596398,2516.2,2516.1,4.7378]
[1747702799274,0.00596398,2516.2,2516.0,3.2078]
[1747702799463,0.00596398,2516.2,2515.8,1.27722642]
[1747702799464,1.28386398,2516.2,2515.8,1.27722642]
[1747702799663,1.3187,2516.1,2515.8,0.48252642]
[1747702799882,0.79467,2515.9,2515.8,0.48252642]
[1747702800382,0.7947,2515.8,2515.7,0.00596398]
[1747702800571,6.6376,2515.8,2515.7,0.00596398]
[1747702800772,6.6376,2515.8,2515.5,0.96281157]
[1747702800773,10.8429,2515.8,2515.5,0.96281157]
[1747702800971,0.79486,2515.3,2515.2,1.27100883]
[1747702801173,4.00266,2515.3,2515.2,1.27100883]
[1747702801368,49.80266,2515.3,2515.2,1.27100883]
[1747702801781,1.2941,2515.5,2515.2,1.27100883]
[1747702802579,0.79486,2515.3,2515.1,0.7949]
[1747702802779,3.2078,2515.4,2515.3,0.79486]
[1747702802974,1.2941,2515.4,2515.3,0.79486]
[1747702803371,1.2941,2515.4,2515.1,2.5445]
[1747702803575,0.79492,2515.1,2515.0,1.27926398]
[1747702803974,1.2941,2515.1,2515.0,2.07421398]
[1747702804177,2.08902,2515.1,2515.0,1.27926398]
[1747702804380,2.08902,2515.1,2515.0,0.00596398]
[1747702804571,1.2941,2515.1,2515.0,0.00596398]
[1747702804771,46.83802944,2515.7,2515.0,5.00596398]
[1747702804972,4.74892944,2515.7,2515.6,0.79476]
[1747702805178,4.74892944,2515.7,2515.6,18.33656]
[1747702805179,2.3159478,2515.7,2515.6,18.33656]
[1747702805377,3.10451601,2516.0,2515.9,0.79467]
[1747702805575,3.10451601,2516.0,2515.7,1.3227]
[1747702805776,0.79473,2515.7,2515.6,3.2078]
[1747702805980,0.79472,2515.8,2515.6,3.2078]
[1747702806283,1.2778,2515.7,2515.6,0.79476]
[1747702806481,7.10697601,2516.0,2515.8,0.79468]
[1747702806682,3.10451601,2516.0,2515.9,0.79467]
[1747702806980,0.7947,2515.8,2515.6,10.12874]
[1747702807283,0.79473,2515.7,2515.6,1.38]
[1747702807578,2.11293,2515.7,2515.6,1.38]
[1747702807778,4.526,2515.7,2515.4,0.7948]
[1747702807976,5.32076,2515.7,2515.4,2.1748]
[1747702808480,4.526,2515.7,2515.4,1.38]
[1747702808681,4.526,2515.7,2515.6,0.79476]
[1747702809284,3.2078,2515.7,2515.6,0.79476]
[1747702809486,0.79465,2516.0,2515.8,0.79469]
[1747702809785,0.79465,2516.0,2515.4,1.38]
[1747702809786,2.11285,2516.0,2515.7,0.79471]
[1747702810079,1.3182,2516.0,2515.9,0.79467]
[1747702810385,1.15840315,2516.1,2516.0,0.79464]
[1747702810590,1.15840315,2516.1,2516.0,5.7784]
[1747702810787,1.15840315,2516.1,2515.6,3.2078]
[1747702811084,1.15840315,2516.1,2516.0,0.79464]
[1747702811489,1.15840315,2516.1,2515.8,3.8773]
[1747702811687,1.3209,2516.0,2515.8,4.67199]
[1747702811884,0.00596398,2516.2,2515.8,3.8773]
[1747702812280,0.00596398,2516.2,2516.1,0.7946]
[1747702813181,0.00596398,2516.2,2516.1,2.1009]
[1747702817091,1.34226398,2516.2,2516.1,2.1009]
[1747702817591,0.00596398,2516.2,2516.1,2.1009]
[1747702817793,1.34226398,2516.2,2516.1,2.1009]
[1747702818195,0.00596398,2516.2,2516.1,2.1009]
[1747702819402,0.79464,2516.0,2515.9,0.9322]
[1747702819697,4.00244,2516.0,2515.9,0.9322]
[1747702819901,9.00244,2516.0,2515.9,0.9322]
[1747702820091,9.5223,2516.0,2515.2,3.2078]
[1747702820287,0.79487,2515.3,2515.2,0.79488]
[1747702820495,0.79492,2515.1,2514.9,2.1869]
[1747702820700,0.79511,2514.5,2514.4,1.98905549]
[1747702820891,3.2078,2514.8,2514.4,1.98905549]
[1747702821086,1.3145,2514.8,2514.7,0.79505]
[1747702821395,0.79486,2515.3,2515.1,0.79489]
[1747702821596,0.79489,2515.2,2515.1,0.79489]
[1747702821788,0.79492,2515.1,2514.9,0.80093398]
[1747702821988,0.79494,2515.1,2514.9,0.80094398]
[1747702822196,0.79495,2515.0,2514.9,0.00596398]
[1747702822396,4.00275,2515.0,2514.9,0.00596398]
[1747702822600,9.00275,2515.0,2514.9,0.00596398]
[1747702822895,19.53021,2515.0,2514.3,2.66433424]
[1747702823095,19.53021,2515.0,2514.5,0.79509]
[1747702823096,4.00285,2514.7,2514.5,0.79509]
[1747702823297,0.79511,2514.5,2514.3,3.45948424]
[1747702823493,1.3201,2514.4,2514.3,3.45948424]
[1747702823996,1.3201,2514.4,2514.3,2.17235]
[1747702824495,1.3201,2514.4,2514.2,2.3864]
[1747702824700,0.79517,2514.3,2514.2,2.3864]
[1747702825409,2.11526,2514.4,2514.2,3.18159]
[1747702825900,0.79517,2514.3,2514.2,3.18159]
[1747702826092,2.17397,2514.3,2514.2,2.3864]
[1747702827002,1.3788,2514.3,2514.2,3.1816]
[1747702827707,3.2078,2514.7,2514.2,2.3864]
[1747702828001,1.15840315,2514.9,2514.3,4.5111]
[1747702828196,1.15840315,2514.9,2514.8,0.79501]
[1747702829614,1.95338315,2514.9,2514.7,0.79502]
[1747702829907,0.79501,2514.8,2514.7,0.79502]
[1747702830108,0.79508,2514.6,2514.5,1.3724]
[1747702830312,0.79517,2514.3,2514.2,2.3864]
[1747702830614,13.33997,2514.3,2514.2,2.3864]
[1747702830912,59.13997,2514.3,2514.2,2.3864]
[1747702831214,54.12597,2514.3,2514.2,2.3864]
[1747702831606,59.12597,2514.3,2514.2,2.3864]
[1747702831809,0.79537,2513.7,2513.5,0.79541]
[1747702832112,0.79543,2513.5,2513.4,0.96448015]
[1747702832510,10.11843,2513.5,2513.4,0.96448015]
[1747702832710,15.11843,2513.5,2513.4,0.96448015]
[1747702832925,14.323,2513.5,2512.6,3.2078]
[1747702833208,0.79567,2512.8,2512.6,3.2078]
[1747702833716,3.2078,2512.9,2512.4,0.64053439]
[1747702833910,0.79565,2512.8,2512.4,0.64053439]
[1747702834108,3.2078,2512.9,2512.4,0.64053439]
[1747702834307,4.00353,2512.6,2512.4,0.64053439]
[1747702834609,0.79574,2512.5,2512.4,0.64053439]
[1747702835003,2.13024,2512.5,2512.4,0.64053439]
[1747702835211,3.2078,2512.9,2512.4,0.64053439]
[1747702835418,40.09,2513.8,2513.3,0.79549]
[1747702835419,3.2078,2513.4,2513.3,0.79549]
[1747702835718,3.2078,2513.4,2512.9,4.4487]
[1747702835913,4.36620315,2513.4,2512.9,5.7447]
[1747702836113,0.79556,2513.1,2512.9,2.5369]
[1747702836417,3.2078,2513.1,2512.9,1.296]
[1747702836609,1.3345,2513.0,2512.7,0.79566]
[1747702836814,1.3345,2513.0,2512.8,0.79564]
[1747702837120,1.3345,2513.0,2512.9,0.79562]
[1747702837319,1.3345,2513.0,2512.8,0.79564]
[1747702837510,1.3345,2513.0,2512.9,0.79562]
[1747702837817,4.36620315,2513.4,2512.9,0.79562]
[1747702838016,4.36620315,2513.4,2513.3,0.79549]
[1747702838318,4.36620315,2513.4,2513.0,1.3803]
[1747702838617,1.3165,2513.3,2513.1,0.79555]
[1747702838815,1.3165,2513.3,2512.9,3.2078]
[1747702839007,0.79558,2513.1,2512.9,3.2078]
[1747702839208,2.11208,2513.0,2512.7,0.79567]
[1747702839410,2.11208,2513.0,2512.5,2.5931]
[1747702839411,1.3165,2513.0,2512.8,0.79565]
[1747702839608,1.3165,2513.0,2512.9,0.79562]
[1747702840013,9.328,2513.3,2513.2,0.79552]
[1747702840216,12.5358,2513.5,2513.0,1.3803]
[1747702840517,2.11196,2513.4,2513.2,0.7955]
[1747702840721,2.11196,2513.4,2512.9,3.2078]
[1747702840722,1.3165,2513.4,2512.9,3.2078]
[1747702840917,1.3165,2513.4,2512.6,1.3188]
[1747702841112,1.3165,2513.4,2512.6,1.98928]
[1747702841313,0.79557,2513.1,2512.8,0.79565]
[1747702841818,0.79564,2512.9,2512.5,1.2128]
[1747702842025,1.376,2512.8,2512.5,2.5316]
[1747702842324,0.79581,2512.3,2512.2,0.597]
[1747702842713,4.00361,2512.3,2512.2,0.597]
[1747702842919,5.37961,2512.3,2512.2,0.597]
[1747702843922,1.98983,2512.0,2511.1,3.2078]
[1747702844122,3.2078,2511.6,2511.1,3.2078]
[1747702844417,1.2817,2511.5,2511.2,1.3414]
[1747702844618,50.129,2511.8,2511.2,1.3414]
[1747702844827,50.129,2511.8,2511.4,0.79607]
[1747702845021,0.79609,2511.5,2511.2,0.79615]
[1747702845321,3.2078,2511.6,2511.4,0.79608]
[1747702845519,9.331,2511.9,2511.2,3.33176]
[1747702845724,13.33468,2512.1,2511.5,3.2078]
[1747702846022,0.79593,2511.9,2511.6,2.13741]
[1747702846320,1.2817,2511.8,2511.6,2.13741]
[1747702846516,1.2817,2511.8,2511.7,2.1374]
[1747702847013,4.4895,2511.8,2511.0,12.5388]
[1747702847214,4.4895,2511.8,2511.4,1.2736]
[1747702847411,4.4895,2511.8,2511.5,0.79605]
[1747702847412,0.79603,2511.7,2511.5,0.79605]
[1747702847619,4.4895,2511.8,2511.7,0.796]
[1747702847620,3.2078,2511.8,2511.7,0.796]
[1747702847820,3.2078,2511.8,2511.5,1.2354]
[1747702848019,0.796,2511.7,2511.6,1.2736]
[1747702848524,3.2078,2511.8,2511.7,0.796]
[1747702848823,3.2078,2511.8,2511.6,2.5686]
[1747702849016,3.2078,2511.8,2511.6,3.36462]
[1747702849017,4.00378,2511.8,2511.6,3.36462]
[1747702849323,1.3386,2512.0,2511.6,2.5686]
[1747702849524,1.3386,2512.0,2511.9,0.79593]
[1747702849820,12.5388,2512.1,2511.9,0.79593]
[1747702850021,13.33467,2512.1,2512.0,1.3752]
[1747702850321,5.27119,2512.4,2512.2,0.79582]
[1747702850522,0.00596398,2512.5,2512.4,0.79577]
[1747702851114,0.00596398,2512.5,2512.4,4.00357]
[1747702851625,1.15840315,2513.3,2513.2,0.79552]
[1747702852322,1.15840315,2513.3,2512.8,5.1969]
[1747702852323,1.15840315,2513.3,2513.1,0.79553]
[1747702852627,0.79558,2513.0,2512.5,3.2078]
[1747702852828,0.79558,2513.0,2512.8,2.17084]
[1747702853121,4.4754,2513.2,2512.6,0.79571]
[1747702853420,0.79568,2512.7,2512.6,1.2646]
[1747702853620,3.2078,2512.9,2512.6,1.2646]
[1747702853821,1.3271,2512.8,2512.6,2.0603]
[1747702854024,0.79557,2513.1,2512.7,1.2646]
[1747702854320,0.79557,2513.1,2512.8,0.79565]
[1747702854523,0.79557,2513.1,2512.5,1.183]
[1747702854524,0.79565,2512.8,2512.5,1.97873]
[1747702854720,1.3271,2512.7,2512.5,1.97873]
[1747702855022,1.3271,2512.7,2512.2,1.27836398]
[1747702855023,0.7958,2512.4,2512.2,1.27836398]
[1747702855222,2.12291,2512.3,2512.2,1.27836398]
[1747702855429,2.12291,2512.3,2512.2,0.00596398]
[1747702855723,11.45491,2512.3,2512.2,0.00596398]
[1747702855928,2.12291,2512.3,2512.2,0.00596398]
[1747702856530,7.12291,2512.3,2512.2,3.98e-06]
[1747702857029,7.71761,2512.3,2512.2,3.98e-06]
[1747702857328,17.04961,2512.3,2512.2,3.98e-06]
[1747702857826,16.45591,2512.3,2512.2,3.98e-06]
[1747702858929,57.25591,2512.3,2512.2,3.98e-06]
[1747702859130,42.92291,2512.3,2512.2,3.98e-06]
[1747702860431,1.3271,2512.3,2512.2,3.98e-06]
[1747702860624,1.3271,2512.3,2512.2,0.79584398]
[1747702860829,1.15840315,2512.5,2512.4,0.79577]
[1747702861423,1.15840315,2512.5,2512.4,2.11407]
[1747702861623,1.95414315,2512.5,2512.4,1.3183]
[1747702861829,1.15840315,2512.5,2512.4,2.11407]
[1747702862331,1.15840315,2512.5,2512.4,7.11407]
[1747702862730,1.3755,2513.0,2512.5,0.79574]
[1747702862931,1.3755,2513.0,2512.6,1.3508]
[1747702863232,1.3755,2513.0,2512.2,3.98e-06]
[1747702863233,3.2078,2512.8,2512.2,3.98e-06]
[1747702863429,1.3755,2512.7,2512.2,3.98e-06]
[1747702863622,9.327,2512.8,2512.3,3.2078]
[1747702863823,3.2078,2513.1,2512.6,3.2078]
[1747702864035,1.15840315,2513.2,2512.7,6.9984]
[1747702864334,1.3755,2513.1,2512.7,3.23548]
[1747702864531,0.79563,2512.9,2512.7,3.23548]
[1747702864730,0.79563,2512.9,2512.7,2.4398]
[1747702864930,0.79559,2513.0,2512.7,2.4398]
[1747702865121,1.3755,2513.1,2512.7,2.4398]
[1747702865432,0.7956,2513.0,2512.8,0.79565]
[1747702865626,0.79562,2512.9,2512.7,3.23546]
[1747702865826,0.79565,2512.8,2512.7,2.4398]
[1747702866029,0.79581,2512.3,2512.2,3.98e-06]
[1747702866225,3.2078,2512.6,2512.2,3.98e-06]
[1747702866430,3.2078,2512.7,2512.2,3.98e-06]
[1747702866634,1.2821,2512.5,2512.2,3.98e-06]
[1747702866933,9.326,2512.8,2512.2,3.98e-06]
[1747702867132,0.79581,2512.3,2512.2,3.98e-06]
[1747702867326,1.2821,2512.6,2512.3,0.79579]
[1747702867528,1.2821,2512.6,2512.2,3.98e-06]
[1747702867729,0.79578,2512.4,2512.2,0.79581398]
[1747702867929,0.79573,2512.6,2512.2,3.98e-06]
[1747702868129,0.79573,2512.6,2512.4,0.79575]
[1747702868331,0.79569,2512.7,2512.3,3.2078]
[1747702868536,1.98905,2512.9,2512.2,3.98e-06]
[1747702868732,0.79579,2512.4,2512.2,0.79583398]
[1747702869037,0.79577,2512.4,2512.2,0.79582398]
[1747702869243,1.3505,2512.9,2512.2,3.98e-06]
[1747702869531,0.79574,2512.5,2512.3,0.79579]
[1747702869737,0.79581,2512.3,2512.2,3.98e-06]
[1747702869927,44.0078,2512.7,2512.2,3.98e-06]
[1747702870234,0.79576,2512.5,2512.3,0.7958]
[1747702870534,0.79576,2512.5,2512.3,0.79578]
[1747702870740,3.2078,2512.7,2512.3,3.2078]
[1747702870926,3.2078,2512.7,2512.6,0.79571]
[1747702871537,0.79563,2512.9,2512.7,0.79567]
[1747702871722,10.48440315,2513.0,2512.6,3.2078]
[1747702871922,1.15840315,2513.0,2512.9,4.00342]
[1747702872131,1.54453753,2513.2,2513.1,0.79555]
[1747702872534,1.54453753,2513.2,2513.1,5.79555]
[1747702873235,3.2078,2513.6,2513.1,5.0]
[1747702873435,3.2078,2513.6,2513.4,0.79546]
[1747702874033,4.75233753,2514.3,2514.2,0.7952]
[1747702874239,1.54453753,2514.3,2514.2,0.7952]
[1747702874642,1.54453753,2514.3,2514.2,15.1202]
[1747702875130,1.54453753,2514.3,2514.2,0.7952]
[1747702875330,1.54453753,2514.3,2514.0,0.00596398]
[1747702875536,1.54453753,2514.3,2514.2,0.7952]
[1747702876335,0.00596398,2514.5,2514.3,0.79517]
[1747702876750,0.00596398,2514.5,2514.0,3.21376398]
[1747702877040,0.00596398,2514.5,2514.4,0.79514]
[1747702878041,3.2078,2515.0,2514.8,0.795]
[1747702878346,0.96941777,2515.2,2515.1,0.79492]
[1747702880537,0.00596398,2515.4,2515.0,3.2078]
[1747702880538,0.00596398,2515.4,2515.3,0.79486]
[1747702881037,0.00596398,2515.4,2515.3,5.79486]
[1747702881240,0.79468,2515.9,2515.3,9.00266]
[1747702881444,1.3589,2515.9,2515.7,0.79471]
[1747702881643,2.15359,2515.9,2515.6,0.79474]
[1747702881837,0.79474,2515.7,2515.4,2.557]
[1747702882042,0.79474,2515.7,2515.5,0.79479]
[1747702882341,0.79471,2515.8,2515.5,0.79476]
[1747702882546,1.36486398,2515.9,2515.6,1.2948]
[1747702882747,1.36486398,2515.9,2515.7,0.79471]
[1747702882948,2.15954398,2515.9,2515.6,1.2948]
[1747702883145,0.00596398,2515.9,2515.8,0.7947]
[1747702883445,0.80064398,2515.9,2515.6,2.08955]
[1747702883647,2.09104398,2515.9,2515.7,1.2678]
[1747702883844,1.29636398,2515.9,2515.7,1.864]
[1747702884043,0.7947,2515.8,2515.7,0.5962]
[1747702884541,0.79483,2515.4,2515.3,0.00596398]
[1747702884943,0.79508,2514.6,2514.5,3.2078]
[1747702885144,5.0,2515.4,2514.5,3.2078]
[1747702885145,5.19487,2515.4,2514.5,3.2078]
[1747702885450,0.79505,2514.7,2514.6,1.2678]
[1747702885652,3.2078,2515.1,2514.6,1.2678]
[1747702885845,1.2904,2515.0,2514.6,1.2678]
[1747702886153,0.79504,2514.8,2514.6,2.06883398]
[1747702886353,2.13085,2514.7,2514.6,1.27376398]
[1747702886653,1.3358,2514.7,2514.6,0.80104398]
[1747702886849,1.3358,2514.7,2514.6,2.09484398]
[1747702887056,0.79488,2515.3,2515.1,0.79492]
[1747702887257,1.3358,2515.3,2515.2,0.79489]
[1747702887554,3.2078,2515.4,2515.3,0.79486]
[1747702887744,10.5377,2515.8,2515.5,0.79477]
[1747702887745,1.3358,2515.7,2515.5,0.79477]
[1747702887944,1.3358,2515.7,2515.4,1.2938]
[1747702888148,10.11271,2515.8,2515.6,0.79474]
[1747702888346,0.79471,2515.8,2515.6,0.79474]
[1747702888547,0.79471,2515.8,2515.7,1.2938]
[1747702889251,2.13644398,2515.9,2515.7,2.08853]
[1747702889851,0.7947,2515.8,2515.7,1.2938]
[1747702890161,0.79476,2515.6,2515.4,2.062]
[1747702890354,0.79479,2515.5,2515.4,2.5562]
[1747702890543,0.79479,2515.5,2515.3,5.72104]
[1747702890544,0.79482,2515.4,2515.3,3.2078]
[1747702890743,0.79482,2515.4,2515.0,1.3854]
[1747702890744,0.79492,2515.1,2515.0,1.3854]
[1747702891654,1.2759,2515.4,2515.0,2.18035]
[1747702892050,0.79492,2515.1,2515.0,0.0964]
[1747702892757,2.11022,2515.1,2515.0,0.0964]
[1747702895047,2.11022,2515.1,2514.6,0.00596398]
[1747702895048,0.79505,2514.7,2514.6,0.00596398]
[1747702896151,1.3102,2514.8,2514.6,0.00596398]
[1747702896352,3.2078,2515.3,2514.6,12.63476398]
[1747702896554,3.2078,2515.3,2515.1,0.79491]
[1747702896555,0.79489,2515.2,2515.1,0.79491]
[1747702896756,1.3102,2515.2,2515.1,0.79491]
[1747702897151,3.2078,2515.3,2515.2,0.79489]
[1747702897350,4.00268,2515.3,2515.1,0.7949]
[1747702897750,0.79488,2515.3,2515.2,0.79489]
[1747702898051,12.6288,2515.7,2514.9,3.2078]
[1747702898250,12.6288,2515.7,2514.8,1.3241]
[1747702898559,0.79495,2515.1,2514.9,0.79498]
[1747702898761,3.2078,2515.4,2514.9,0.79498]
[1747702898960,0.79495,2515.1,2514.9,0.79498]
[1747702899152,3.2078,2515.4,2514.9,0.79498]
[1747702899452,3.2078,2515.4,2514.8,1.3241]
[1747702899660,9.421,2515.7,2514.8,1.3241]
[1747702899661,12.6288,2515.7,2515.2,0.79489]
[1747702899852,0.79486,2515.3,2515.2,0.79489]
[1747702900047,0.79485,2515.4,2515.2,0.79489]
[1747702900254,0.79481,2515.5,2515.3,0.79486]
[1747702900454,13.42354,2515.7,2515.1,1.98731]
[1747702900647,12.6288,2515.7,2515.5,0.79477]
[1747702900846,0.79476,2515.6,2515.2,2.10746]
[1747702901055,3.2078,2515.7,2515.3,1.3126]
[1747702901357,0.00596398,2515.9,2515.3,1.3126]
[1747702901557,0.79475,2515.7,2515.5,0.79478]
[1747702901769,0.00596398,2515.9,2515.3,4.5204]
[1747702902059,0.79471,2515.8,2515.3,4.5204]
[1747702902258,0.7947,2515.8,2515.5,0.79477]
[1747702902454,0.7947,2515.8,2515.6,1.3061]
[1747702902763,0.00596398,2515.9,2515.7,0.79473]
[1747702903155,0.7947,2515.8,2515.6,2.10084]
[1747702903352,0.00596398,2515.9,2515.8,0.7947]
[1747702903862,0.00596398,2515.9,2515.8,2.1008]
[1747702904052,0.79473,2515.7,2515.6,3.2078]
[1747702904253,0.79489,2515.2,2515.1,3.2078]
[1747702904567,0.79489,2515.2,2515.1,4.00272]
[1747702904858,0.79489,2515.2,2515.1,3.2078]
[1747702905058,0.79498,2514.9,2514.8,0.48167694]
[1747702905557,11.40824,2515.2,2514.8,0.48167694]
[1747702905558,9.421,2515.2,2514.8,1.27666694]
[1747702905758,0.79495,2515.0,2514.8,1.27666694]
[1747702906359,3.2078,2515.3,2514.8,1.3203]
[1747702906558,4.00268,2515.3,2515.1,0.7949]
[1747702906760,0.79488,2515.3,2515.1,0.7949]
[1747702906959,2.33936753,2515.4,2515.2,0.79487]
[1747702907159,1.54453753,2515.4,2515.3,0.79486]
[1747702908361,2.33938753,2515.4,2515.2,0.79487]
[1747702908559,1.54453753,2515.4,2515.3,0.79486]
[1747702909063,2.33936753,2515.4,2515.2,0.79488]
[1747702909562,2.33936753,2515.4,2515.2,0.79487]
[1747702909760,1.54453753,2515.4,2515.2,0.79487]
[1747702909958,3.2078,2515.6,2515.0,1.3203]
[1747702910264,0.79489,2515.2,2515.0,2.11524]
[1747702910860,3.2078,2515.6,2515.0,1.3203]
[1747702911357,3.2078,2515.6,2515.4,0.79481]
[1747702911658,3.21376398,2515.9,2515.7,0.79473]
[1747702911863,0.7947,2515.8,2515.6,0.79474]
[1747702912168,3.21376398,2515.9,2515.4,1.2941]
[1747702912355,0.79479,2515.5,2515.1,2.415]
[1747702912671,0.79489,2515.2,2515.1,1.2941]
[1747702913168,1.1775,2515.8,2515.1,1.2941]
[1747702913359,0.7948,2515.5,2515.3,0.79483]
[1747702913558,0.7948,2515.5,2515.3,2.08893]
[1747702913861,1.1775,2515.8,2515.3,1.2941]
[1747702914063,0.79478,2515.6,2515.4,0.79483]
[1747702914259,1.1775,2515.8,2515.3,2.08894]
[1747702914464,0.79478,2515.6,2515.4,0.79482]
[1747702914865,0.79479,2515.5,2515.4,0.79482]
[1747702915068,13.86356398,2515.9,2515.1,1.3747]
[1747702915365,12.63476398,2515.9,2515.2,1.98723]
[1747702915563,13.42945398,2515.9,2515.7,0.79473]
[1747702915770,3.21376398,2515.9,2515.8,2.1694]
[1747702915971,0.00596398,2515.9,2515.8,2.1694]
[1747702918762,0.00596398,2515.9,2515.8,16.5884]
[1747702919571,1.54453753,2516.4,2516.3,0.79454]
[1747702920068,4.00226,2516.6,2516.1,1.2843]
[1747702920069,0.79456,2516.3,2516.1,1.2843]
[1747702920264,0.79453,2516.4,2516.1,2.07889]
[1747702920463,3.2078,2516.6,2516.2,1.2843]
[1747702920870,3.2078,2516.6,2516.1,0.00596398]
[1747702921073,0.79457,2516.2,2516.1,0.00596398]
[1747702921271,4.4447,2516.6,2516.1,0.80055398]
[1747702921468,0.79454,2516.4,2516.1,0.80055398]
[1747702921671,3.2078,2516.3,2516.1,0.00596398]
[1747702921874,4.4447,2516.6,2516.1,1.29026398]
[1747702922070,0.79457,2516.2,2516.1,0.00596398]
[1747702922475,12.5228,2516.3,2516.1,0.00596398]
[1747702922676,0.79457,2516.2,2516.1,0.00596398]
[1747702922868,5.6901,2516.6,2516.1,0.00596398]
[1747702923377,0.79457,2516.2,2516.1,0.00596398]
[1747702923881,0.79451,2516.4,2516.2,0.79457]
[1747702924081,3.2078,2516.6,2516.4,0.79449]
[1747702924382,0.79453,2516.4,2516.2,2.11055]
[1747702924682,3.2078,2516.6,2516.1,0.00596398]
[1747702924874,0.79456,2516.3,2516.1,0.80056398]
[1747702925070,0.79452,2516.4,2516.2,0.79456]
[1747702925277,0.79457,2516.2,2516.1,0.00596398]
[1747702925982,2.01987,2516.2,2516.1,0.00596398]
[1747702926379,0.7947,2515.8,2515.7,3.2078]
[1747702926582,0.79486,2515.3,2515.2,0.48167694]
[1747702927382,10.10984,2515.4,2515.2,1.27656694]
[1747702927577,0.79486,2515.3,2515.2,0.48167694]
[1747702927769,4.00266,2515.3,2515.2,0.48167694]
[1747702928175,9.00266,2515.3,2515.2,0.48167694]
[1747702928677,4.00266,2515.3,2515.2,0.48167694]
[1747702929180,0.79492,2515.1,2515.0,0.00596398]
[1747702929979,0.7949,2515.2,2515.0,0.80089398]
[1747702930179,0.79492,2515.1,2515.0,0.00596398]
[1747702930479,0.00596398,2515.3,2515.2,0.79489]
[1747702931379,0.00596398,2515.3,2515.2,2.10889]
[1747702931575,1.54453753,2515.5,2515.4,0.79483]